Cogmind - Beta 14 @@@ ROGUE MODE // 2024.09.20 @ 15:53:19 Player: Bunch Result: Destroyed by XL-201(j) with Overtuned Pulse Rifle Performance ------------- Evolutions (1) 500 Regions Visited (5) 1000 Robots Destroyed (33) 165 Value Destroyed (880) 880 Prototype IDs (2) 40 Alien Tech Used (0) 0 Bonus (424) 424 TOTAL SCORE: 3009 Bonus ------- Follower Combat Kills 437 Friendly Fire -13 Cogmind --------- Core Integrity 0/400 Matter 279/300 Energy 100/100 System Corruption 0% Temperature Danger (446) Movement Core (200) Ox3 Location -9/Recycling Parts ------- > --- POWER (2) -------- (None) > --- PROPULSION (2) --- (None) > --- UTILITY (3) ------ Medium Storage Unit Signal Interpreter > --- WEAPON (2) ------- (None) > --- INVENTORY (10) --- Experimental Sensor Array Heavy EM Pulse Gun Improved EM Shotgun Peak State ------------ > --- POWER ------------ Improved Ion Engine Improved Ion Engine > --- PROPULSION ------- Light Treads Light Treads > --- UTILITY ---------- Small Storage Unit Experimental Sensor Array Signal Interpreter > --- WEAPON ----------- Improved EM Shotgun Heavy Assault Rifle > --- INVENTORY -------- Improved Ion Engine EM Pulse Gun Heavy EM Pulse Gun Medium Laser Heavy Assault Rifle Rocket Launcher [Rating: 23] Favorites ----------- Power Improved Ion Engine Engine Improved Ion Engine Propulsion Light Treads Treads Light Treads Wheel Wheel Utility Signal Interpreter Device Drone Bay Storage Small Storage Unit Processor Signal Interpreter Weapon Heavy Assault Rifle Energy Gun Improved EM Shotgun Ballistic Gun Heavy Assault Rifle Launcher Rocket Launcher Build | -11 -10 -10 -9 -9 -9 ------- Run | Yrd Mat Min Mat Sto Rec Slots Evolved 2 | . . . 2 . . Power 1 | . . . 1 . . Propulsion . | . . . . . . Utility 1 | . . . 1 . . Weapon . | . . . . . . Parts Attached 28 | 6 7 2 6 2 5 Power 5 | 1 1 . 2 . 1 Engine 5 | 1 1 . 2 . 1 Core . | . . . . . . Reactor . | . . . . . . Propulsion 8 | 2 . 2 3 . 1 Treads 6 | 2 . . 3 . 1 Leg . | . . . . . . Wheel 2 | . . 2 . . . Hover . | . . . . . . Flight . | . . . . . . Utility 6 | 1 2 . 1 1 1 Device 3 | . 1 . 1 1 . Storage 2 | 1 . . . . 1 Processor 1 | . 1 . . . . Hackware . | . . . . . . Protection . | . . . . . . Artifact . | . . . . . . Weapon 9 | 2 4 . . 1 2 Energy Gun 4 | 2 1 . . . 1 Energy Cannon . | . . . . . . Ballistic Gun 4 | . 3 . . . 1 Ballistic Cannon . | . . . . . . Launcher 1 | . . . . 1 . Special Weapon . | . . . . . . Impact Weapon . | . . . . . . Slashing Weapon . | . . . . . . Piercing Weapon . | . . . . . . Special Melee Weapon . | . . . . . . Unidentified Prototypes 2 | . 1 . 1 . . Parts Lost 14 | . 1 1 1 . 11 Power 4 | . 1 . . . 3 Propulsion 5 | . . 1 1 . 3 Utility 1 | . . . . . 1 Weapon 4 | . . . . . 4 Highest Loss Streak 11 | . 1 1 1 . 11 To Critical Strikes . | . . . . . . Average Slot Usage (%) 98 | . 97 99 92 100 99 Engine 19 | . 12 14 16 22 22 Treads 19 | . 28 . 2 22 21 Wheel 3 | . . 26 18 . . Device 9 | . 7 . 11 11 10 Storage 11 | . 14 14 11 11 11 Processor 10 | . 6 14 11 11 11 Energy Gun 6 | . 15 14 11 4 . Ballistic Gun 11 | . 12 14 11 11 11 Launcher 5 | . . . . 6 10 Peak Build Rating 23 | 6 11 11 23 23 19 Average Rating 16 | 4 7 10 20 20 18 On Entrance 11 | . 6 11 11 23 19 Naked Turns . | . . . . . . Heaviest Build 37 | 12 16 16 26 32 37 Greatest Support 40 | 40 40 20 40 40 40 Greatest Overweight (x) 2 | . . . 2 . 1 Average Overweight (x) . | . . . . . . Largest Inventory Capacity 10 | 8 8 8 8 8 10 Average Capacity 8 | 7 8 8 8 8 9 Most Carried 8 | 4 8 8 8 8 8 Average Carried 6 | 1 3 5 6 7 6 Final Capacity 10 | 8 8 8 8 8 10 Final Carried 8 | 2 8 6 7 7 3 Class Distribution -------------------- 62% | Mutant 37% | Commander-Mutant Dominant Class ---------------- Mutant | -10/Materials Mutant | -10/Mines Mutant | -9/Materials Mutant | -9/Storage Commander-Mutant | -9/Recycling Resources | -11 -10 -10 -9 -9 -9 ----------- Run | Yrd Mat Min Mat Sto Rec Matter Collected 671 | 240 111 59 86 165 10 Remotely . | . . . . . . Salvage Created 1179 | . 262 247 269 401 . Parts 78 | . 16 14 16 32 . Haulers Intercepted 1 | . . . 1 . . Recyclers Shooed 3 | . 1 . 1 1 . Parts Field Recycled . | . . . . . . Retrieved Matter . | . . . . . . Parts Self-Destructed . | . . . . . . Prevented . | . . . . . . Kills | -11 -10 -10 -9 -9 -9 ------- Run | Yrd Mat Min Mat Sto Rec Combat Hostiles Destroyed 21 | . 4 6 2 9 . Guns 13 | . 2 6 1 4 . AOE 8 | . 2 . 1 5 . Classes Destroyed 9 | . 4 1 2 2 . Worker 2 | . 1 . 1 . . Builder 2 | . . . . 2 . Hauler 1 | . . . 1 . . Recycler 3 | . 1 . 1 1 . Operator 1 | . . . . 1 . Watcher 3 | . 1 . 1 1 . Swarmer 4 | . . 2 . 2 . Grunt 13 | . 4 4 1 4 . Sentry 4 | . . . 1 3 . Best Kill Streak 3 | . 2 2 2 3 . Combat Bots Only 3 | . 2 2 1 3 . Max Kills in Single Turn 2 | . 1 1 2 2 . Gunslinging . | . . . . . . Exploded 1 | . 1 . 1 1 . Melee . | . . . . . . Uniques/NPCs Destroyed . | . . . . . . Combat | -11 -10 -10 -9 -9 -9 -------- Run | Yrd Mat Min Mat Sto Rec Hostile Shots Fired 184 | . 26 18 21 32 87 Missed 36 | . 3 6 10 10 7 Damage Taken 2323 | . 453 146 161 273 1290 Core 570 | . 79 87 29 36 339 Absorbed by Shields . | . . . . . . Core Remaining (%) 66 | 100 . 33 . . . Volleys Fired 69 | . 20 14 14 19 2 Largest 2 | . 2 2 2 2 2 Hottest 73 | . 68 68 68 68 73 Shots Fired 133 | . 40 28 25 36 4 Gun 125 | . 40 28 25 28 4 Cannon . | . . . . . . Launcher 8 | . . . . 8 . Special . | . . . . . . Kinetic 69 | . 20 14 14 19 2 Thermal 2 | . . . . . 2 Explosive 8 | . . . . 8 . Electromagnetic 54 | . 20 14 11 9 . Robot Hit Streak 14 | . 7 14 9 8 2 Robot Miss Streak 5 | . 4 3 5 4 1 Penetration Max . | . . . . . . Secondary Targets 1 | . . 1 . . . Max Gunslinging Chain 1 | . . 1 . . . Shots Hit Robots 84 | . 25 20 15 21 3 Core Hits 55 | . 12 11 14 18 . Critical Kills . | . . . . . . Critical Parts Destroyed . | . . . . . . Critical Strikes . | . . . . . . Melee Attacks . | . . . . . . Impact . | . . . . . . Slashing . | . . . . . . Piercing . | . . . . . . Sneak Attacks . | . . . . . . Combat Hostiles . | . . . . . . Follow-up Attacks . | . . . . . . Damage Inflicted 1975 | . 453 311 398 754 59 Guns 1162 | . 280 311 246 275 50 Cannons . | . . . . . . Explosions 729 | . 173 . 127 429 . Melee . | . . . . . . Ramming 84 | . . . 25 50 9 Kinetic 524 | . 116 131 95 156 26 Thermal 230 | . 111 . 47 48 24 Explosive 381 | . . . . 381 . Electromagnetic 756 | . 226 180 231 119 . Impact . | . . . . . . Slashing . | . . . . . . Piercing . | . . . . . . Highest Corruption . | . . . . . . Average Corruption . | . . . . . . Corruption Purged . | . . . . . . Corruption Blocked . | . . . . . . Overload Shots . | . . . . . . Overflow Damage 29 | . 29 . . . . Projectiles . | . . . . . . Explosions 29 | . 29 . . . . Melee . | . . . . . . Knockbacks . | . . . . . . Impact . | . . . . . . Kinetic . | . . . . . . Secondary . | . . . . . . Self-Inflicted Damage 79 | . 68 . 11 . . Shots 3 | . 3 . . . . Rammed 13 | . . . 3 9 1 Targets Rammed 15 | . . . 3 11 1 Kicked . | . . . . . . Crushed 2 | . . . . 2 . Highest Temperature 422 | . 152 78 21 54 422 Average Temperature 48 | . 65 23 10 18 174 Received Heat Transfer 1229 | . 210 66 54 66 833 Siege Activations . | . . . . . . Robots Corrupted . | . . . . . . Combat Hostiles . | . . . . . . Parts Fried 2 | . 1 . 1 . . Impact Corruptions . | . . . . . . Robots Melted . | . . . . . . Combat Hostiles . | . . . . . . Parts Melted . | . . . . . . Heat Transferred 200 | . 150 . . . 50 Parts Sabotaged . | . . . . . . Parts Stolen . | . . . . . . Parts Stripped . | . . . . . . Power Chain Reactions 4 | . 2 . 1 1 . Alert | -11 -10 -10 -9 -9 -9 ------- Run | Yrd Mat Min Mat Sto Rec Peak Influence 463 | . 145 278 463 306 80 Initial 195 | . . 11 107 195 60 Average 135 | . 22 158 230 207 30 Maximum Alert Level 2 | . . 1 2 1 . Low Security (%) 74 | 100 100 59 50 60 100 Level 1 24 | . . 40 37 39 . Level 2 . | . . . 12 . . Level 3 . | . . . . . . Level 4 . | . . . . . . Level 5 . | . . . . . . High Security . | . . . . . . Max Security . | . . . . . . Squads Dispatched 4 | . 1 . . 3 . Investigation . | . . . . . . Extermination . | . . . . . . Reinforcement 3 | . 1 . . 2 . Assault . | . . . . . . Garrison 1 | . . . . 1 . Intercept . | . . . . . . Searches Triggered . | . . . . . . Construction Impeded . | . . . . . . Haulers Reinforced . | . . . . . . Active Scanning Responses . | . . . . . . Cargo Convoy Interrupts . | . . . . . . Stealth | -11 -10 -10 -9 -9 -9 --------- Run | Yrd Mat Min Mat Sto Rec Distress Signals 6 | . 2 . 2 2 . Communications Jammed . | . . . . . . Distress Signals . | . . . . . . Times Spotted 63 | . 10 10 11 27 5 Peak Tracking Total 5 | . 5 3 5 5 5 Tactical Retreats 5 | . 1 2 1 1 . Traps | -11 -10 -10 -9 -9 -9 ------- Run | Yrd Mat Min Mat Sto Rec Traps Triggered 1 | . 1 . . . . Indirectly . | . . . . . . Trap Hack Attempts . | . . . . . . Triggered . | . . . . . . Disarmed 6 | . . . 6 . . Reprogrammed 3 | . . . . 3 . Reused . | . . . . . . Traps Extracted . | . . . . . . Installed . | . . . . . . Triggered . | . . . . . . Machines | -11 -10 -10 -9 -9 -9 ---------- Run | Yrd Mat Min Mat Sto Rec Machines Disabled 7 | . 3 . 2 2 . Max in Single Turn 2 | . 2 . 1 2 . Garrison Access 1 | . . . . 1 . Machines Repaired . | . . . . . . Machines Dismantled . | . . . . . . Machines Sabotaged . | . . . . . . Overloaded Fab Kills . | . . . . . . Hacking | -11 -10 -10 -9 -9 -9 --------- Run | Yrd Mat Min Mat Sto Rec Machines Accessed 15 | . 1 1 2 6 5 Terminals 13 | . 1 1 2 5 4 Fabricators . | . . . . . . Repair Stations . | . . . . . . Recycling Units . | . . . . . . Scanalyzers . | . . . . . . Garrison Access 1 | . . . . 1 . Total Hacks 37 | . 4 1 4 15 13 Successful 29 | . 3 1 4 8 13 Failed 8 | . 1 . . 7 . Catastrophic . | . . . . . . Database Lockouts . | . . . . . . Manual 1 | . 1 . . . . Terminals 28 | . 4 1 4 13 6 Fabricators . | . . . . . . Repair Stations . | . . . . . . Recycling Units . | . . . . . . Scanalyzers . | . . . . . . Garrison Access 2 | . . . . 2 . Terminal Hacks 28 | . 3 1 4 7 13 Record 7 | . . . . 1 6 Robot Schematic 1 | . . . . 1 . Level Access Points 1 | . . . . 1 . Alert Level 1 | . 1 . . . . Unreport Threat 1 | . . . . 1 . Locate Traps 1 | . . . 1 . . Disarm Traps 1 | . . . 1 . . Reprogram Traps 1 | . . . . 1 . Dispatch Records 2 | . 1 1 . . . Investigation Status 1 | . . . . . 1 Recall Investigation 1 | . 1 . . . . Zone Layout 8 | . . . 2 2 4 Release Object 2 | . . . . . 2 Fabricator Hacks . | . . . . . . Repair Station Hacks . | . . . . . . Recycling Unit Hacks . | . . . . . . Scanalyzer . | . . . . . . Garrison Access Hacks 1 | . . . . 1 . Seal Access 1 | . . . . 1 . Unauthorized Hacks . | . . . . . . Terminals . | . . . . . . Fabricators . | . . . . . . Repair Stations . | . . . . . . Recycling Units . | . . . . . . Scanalyzers . | . . . . . . Garrison Access . | . . . . . . Data Cores Recovered . | . . . . . . Used . | . . . . . . Hacking Detections 7 | . . 1 2 3 1 Full Trace Events . | . . . . . . Feedback Events . | . . . . . . Feedback Blocked . | . . . . . . Robot Schematics Acquired 1 | . . . . 1 . Robots Built . | . . . . . . Authchips . | . . . . . . Time . | . . . . . . Total Robot Build Rating . | . . . . . . Part Schematics Acquired . | . . . . . . Parts Built . | . . . . . . Authchips . | . . . . . . Time . | . . . . . . Total Part Build Rating . | . . . . . . Parts Repaired . | . . . . . . Time . | . . . . . . Parts Recycled . | . . . . . . Recycled Matter . | . . . . . . Retrieved Matter . | . . . . . . Retrieved Components . | . . . . . . Parts Scanalyzed . | . . . . . . Part Schematics Acquired . | . . . . . . Parts Damaged . | . . . . . . Bothacking | -11 -10 -10 -9 -9 -9 ------------ Run | Yrd Mat Min Mat Sto Rec Used RIF Installer . | . . . . . . Robots Hacked . | . . . . . . Non-combat . | . . . . . . Combat . | . . . . . . Robot Hacks Applied . | . . . . . . Relay Couplers Released . | . . . . . . Fabnet Peak Effective % . | . . . . . . Robots Rewired . | . . . . . . Allies Hacked . | . . . . . . Hacks Repelled . | . . . . . . Allies | -11 -10 -10 -9 -9 -9 -------- Run | Yrd Mat Min Mat Sto Rec Total Allies 15 | . . 5 . 10 . Largest Group 10 | . . 5 4 10 5 Highest-Rated Group 88 | . . 78 71 88 48 Highest-Rated Ally 31 | . . 31 31 16 16 Total Orders . | . . . . . . Ally Attacks 117 | . . 2 55 55 5 Total Damage 1141 | . . 44 535 516 46 Kills 17 | . . 2 6 8 1 Allies Corrupted . | . . . . . . Allies Melted 1 | . . . . . 1 Intel | -11 -10 -10 -9 -9 -9 ------- Run | Yrd Mat Min Mat Sto Rec Robot Analysis Total . | . . . . . . Derelict Logs Recovered 1 | . . 1 . . . Drone Launches 4 | . . . . 4 . Drone Recoveries 2 | . . . . 2 . Exploration | -11 -10 -10 -9 -9 -9 ------------- Run | Yrd Mat Min Mat Sto Rec Turns Passed 4417 | 123 634 396 362 1973 929 Spaces Moved 2678 | 78 332 350 271 1098 549 Core 13 | 13 . . . . . Treads 2073 | 65 332 4 25 1098 549 Legs . | . . . . . . Wheels 592 | . . 346 246 . . Hover . | . . . . . . Flight . | . . . . . . Fastest Speed 50 | 50 160 80 80 160 160 Average Speed 142 | 141 160 80 92 160 160 Slowest Speed 240 | 160 160 160 240 160 240 Overloaded Moves . | . . . . . . Propulsion Burnouts . | . . . . . . Robots Hopped . | . . . . . . Cave-ins Triggered . | . . . . . . Exploration Rate (%) 53 | 5 46 68 30 92 80 Regions Visited 5 Branch Regions 3 Pre-discovered Areas 1 | . . 1 . . . Known Exits Taken 4 | . 1 1 1 1 . Unknown Exits Taken 1 | 1 . . . . . Scrap Searched 1 | . . 1 . . . Spaces Dug 9 | . . . . 9 . Terrain Destroyed 91 | . 8 . 3 80 . Melee . | . . . . . . Projectile . | . . . . . . AOE 91 | . 8 . 3 80 . Terrain Rammed . | . . . . . . Walls Destroyed . | . . . . . . Machines Disabled . | . . . . . . Actions | -11 -10 -10 -9 -9 -9 --------- Run | Yrd Mat Min Mat Sto Rec Total 3153 | 91 402 436 357 1274 593 Wait 308 | . 25 66 52 135 30 Move 2673 | 77 331 349 270 1097 549 Hop . | . . . . . . Pick Up 37 | 8 13 2 8 5 1 Fast Attach . | . . . . . . Attach 22 | 6 6 2 3 1 4 Detach 1 | . 1 . . . . Swap 6 | . 1 . 3 1 1 Drop 18 | . 5 3 4 5 1 Fire 69 | . 20 14 14 19 2 Melee . | . . . . . . Ram 3 | . . . 3 . . Kick . | . . . . . . Crush 12 | . . . . 11 1 Escape Stasis . | . . . . . . Rewire 4 | . . . . . 4 Trap . | . . . . . . Miscellaneous . | . . . . . . Route ------- -11/Scrapyard -10/Materials -10/Mines -9/Materials (discovered 3 exits: *Mat / [*Min] / *Sto) -9/Storage (discovered 2 exits: *Mat / *Rec) -9/Recycling (discovered 1 exit: *Fac) History --------- Turn | Location | Event 7 | -11/Scrapyard | Discovered new exit (range 14) 124 | -11/Scrapyard | Entered Materials 307 | -10/Materials | Build established: Mutant 492 | -10/Materials | Discovered new exit (range 8) 503 | -10/Materials | Identified exit to Mines 758 | -10/Materials | Entered Mines 830 | -10/Mines | Core integrity fell below 50% 866 | -10/Mines | Found a damaged Exp. Sensor Array with a note attached 868 | -10/Mines | Found Prototype Device 980 | -10/Mines | Assisted by bots powering up and referring to "LRC-V3" 1131 | -10/Mines | Discovered new exit (range 5) 1135 | -10/Mines | Identified exit to Materials 1154 | -10/Mines | Entered Materials 1154 | -9/Materials | Accompanied by 4 allies 1154 | -9/Materials | Evolved 2 slots: Power x1, Utility x1 1154 | -9/Materials | Identified Exp. Sensor Array 1159 | -9/Materials | Led the pair of lost Derelicts to an unsafe place 1265 | -9/Materials | Discovered new exit (range 21) 1319 | -9/Materials | Discovered new exit (range 13) 1448 | -9/Materials | Discovered new exit (range 15) 1514 | -9/Materials | Identified exit to Storage 1516 | -9/Materials | Entered Storage 1516 | -9/Storage | Accompanied by 3 allies 1530 | -9/Storage | Identified exit to Materials 1539 | -9/Storage | Met 01-MTF 1798 | -9/Storage | Discovered new exit (range 3) 1800 | -9/Storage | Identified exit to Recycling 2273 | -9/Storage | Garrison activated, responded to threat 2735 | -9/Storage | Assisted by bots powering up and referring to "LRC-V3" 3022 | -9/Storage | Build established: Commander-Mutant 3489 | -9/Storage | Entered Recycling 3489 | -9/Recycling | Accompanied by 6 allies (01-MTF) 3490 | -9/Recycling | Met a Zionite searching for Scraptown 3967 | -9/Recycling | Discovered new exit (range 20) 4045 | -9/Recycling | Identified exit to Factory 4344 | -9/Recycling | Scanned before Scraplab entrance 4377 | -9/Recycling | Entered Scraplab 4385 | -9/Recycling | Angered Scraplab inhabitants 4412 | -9/Recycling | Core integrity fell below 50% 4416 | -9/Recycling | Core integrity fell below 20% 4418 | -9/Recycling | Destroyed by XL-201(j) with Overtuned Pulse Rifle Last Messages --------------- 04413_ Penetrated by Thermabolt. 04413_ Lgt. Treads destroyed. 04413_ Penetrated by Thermabolt. 04413_ Thermabolt penetrates Wall. 04414_ Wall collapses. 04415_ Penetrated by Thermabolt. 04415_ Thermabolt penetrates Earth. 04415_ Penetrated by Thermabolt. 04415_ Thermabolt penetrates Earth. 04415_ Thermabolt penetrates Wall. 04415_ Penetrated by Thermabolt. 04415_ Thermabolt penetrates Earth. 04415_ Hvy. Assault Rifle destroyed. 04415_ U-05 Engineer builds a Wall. 04416_ Med. Laser destroyed. 04417_ Penetrated by Thermabolt. 04417_ Thermabolt penetrates Wall. 04417_ Penetrated by Thermabolt. 04417_ Thermabolt penetrates Wall. 04417_ Critical hit (Burn: +50). Map ----- +----------------------------------------------------+ | | | | | | | | | | | | | | | | | | | | | | | | | | | | | | | | | | | | | ??????????????????????????????#########??????????? | | ??????????????????????????????#"""""""#??????????? | | ??????????????????????????????# " X!" ## #???????? | | ????????????????????????####### #???????? | | ???????????????????????##%h /=%! #???????? | | ???????????????????????#%=j#### "#???????? | | ???????????????????????##jj#??# ""#???????? | | ????????????????????????#@;#??#"& "& X ""????????? | | ????????????????????????#%##??#"""""""" #???????? | | ?????????????????????###;=################???????? | | ?????????????????????# #???????????????????? | | ?????###?????????????# #???????????????????? | | ###### #####?????????# #???????????????????? | | #?????????# u #???????????????????? | | #?????????####+####???????????????????? | | #??????????### #??????????????????????? | | #?############ #??????????????????????? | | #+##+##+####?# ## ##?????????????????????? | | #????# # ########??????????????? | | #????# """"" + T #??????????????? | | #????# """"" # #??????????????? | | #????# """"" #### #??????????????? | | # #????# / #??????????????? | | ###### #### #??????????????? | | + #??# #??????????????? | | = ###########+####??# #??????????????? | | # #?????????# #?????# ####??????????????? | | # #?????##### ####### #?????????????????? | | # #?????#"""# #?????????????????? | | # #????##"Y"# #######???????????? | | #+##/##+##???# # #???????????? | | # #???# # """ #???????????? | +----------------------------------------------------+ Best States ------------- Heat Dissipation 28 Energy Generation 19 Energy Capacity 430 Matter Stores 300 Matter Capacity 300 Sight Range 16 Robot Scan Range 20 Terrain Scan Range 14 Terrain Scan Density 10 Evasion (%) 44 Recoil Reduction 2 Item Schematics ----------------- None Robot Schematics ------------------ G-34 Mercenary | -9/Storage | Hacked Fabricated ------------ Nothing Alien Tech Used ----------------- None Achievements -------------- \\IAMDERELICT Challenges ------------ None Game ------ Seed UltimateMultitargetingModule Manual? 0 Play Time 00:36:47 Cumulative 18.1 hours Start 2024.09.20 @ 15:15:10 End 2024.09.20 @ 15:53:19 Sessions 1 Manual Loads 0 Difficulty Rogue Special Mode None Game No. 39 Rogue 34 Adventurer 5 Explorer 0 Win Type - Total 0 Types 0/0/0/0/0/0/0/0/0 Lore% 10 Gallery% 15 Achievement% 14 Wizard Run 0 Options --------- Layout 0 ASCII 0 Keyboard 0 Movement Numpad Keybinds 0 Fullscreen 1 Font 18/SmallcapsGlow Map View 76x50 Zoom Use 0% Tactical HUD 1 Map Filters NONE Filters NONE Steam 1 RUN: a06915f1-1fb0-41a0-891f-2032e4b3bcd4